Workbook

Sheet Sheet1
A1: 附件2
A2: 干驿镇2025年各村党报党刊订阅明细表
A3: 村名 | B3: 统一社会信用代码 | C3: 户名全称 | D3: 联系人 | E3: 联系方式 | F3: 人口 | G3: 《人民日报》 | I3: 《农村新报》 | K3: 《湖北日报》 | M3: 《天门日报》 | O3: 金额
G4: 数量 | H4: 288/份 | I4: 数量 | J4: 168/份 | K4: 数量 | L4: 496/份 | M4: 数量 | N4: 228/份
A5: 八团村 | B5: 54429006K26461986N | C5: 天门市干驿镇八团村村民委员会 | D5: 傅五甫 | E5: 13117116656 | F5: 2672 | G5: 1 | H5: =G5*288 -> 288 | I5: 3 | J5: 504 | K5: 1 | L5: =K5*496 -> 496 | M5: 6 | N5: =M5*228 -> 1368 | O5: =H5+J5+L5+N5 -> 2656
A6: 汪河村 | B6: 54429006K26461855T | C6: 天门市干驿镇汪河村村民委员会 | D6: 左文兵 | E6: 13986940027 | F6: 2282 | G6: 2 | H6: =G6*288 -> 576 | I6: 2 | J6: =I6*168 -> 336 | K6: 0 | L6: 0 | M6: 6 | N6: =M6*228 -> 1368 | O6: =H6+J6+L6+N6 -> 2280
A7: 油榨村 | B7: 54429006K26461863M | C7: 天门市干驿镇油榨村村民委员会 | D7: 刘 磊 | E7: 15706281127 | F7: 2325 | G7: 2 | H7: 576 | I7: 2 | J7: 336 | K7: 1 | L7: =K7*496 -> 496 | M7: 4 | N7: 912 | O7: 2320
A8: 月池村 | B8: 54429006K26461871G | C8: 天门市干驿镇月池村村民委员会 | D8: 周 洋 | E8: 18171950379 | F8: 2443 | G8: 3 | H8: 864 | I8: 1 | J8: =I8*168 -> 168 | K8: 1 | L8: 496 | M8: 4 | N8: 912 | O8: 2440
A9: 小河村 | B9: 54429006K26461847O | C9: 天门市干驿镇小河村村民委员会 | D9: 胡学均 | E9: 13997973295 | F9: 1912 | G9: 2 | H9: 576 | I9: 1 | J9: =I9*168 -> 168 | K9: 0 | L9: 0 | M9: 5 | N9: 1140 | O9: 1884
A10: 晴滩村 | B10: 54429006K26461994H | C10: 天门市干驿镇晴滩村村民委员会 | D10: 付月娥 | E10: 17762343036 | F10: 1577 | G10: 0 | H10: 0 | I10: 1 | J10: =I10*168 -> 168 | K10: 1 | L10: 496 | M10: 4 | N10: 912 | O10: 1576
A11: 长湖村 | B11: 54429006ME3450008F | C11: 天门市干驿镇长湖村村民委员会 | D11: 鄢光华 | E11: 15871939715 | F11: 1784 | G11: 3 | H11: 864 | I11: 0 | J11: 0 | K11: 0 | L11: 0 | M11: 4 | N11: 912 | O11: 1776
A12: 界牌村 | B12: 54429006ME34499985 | C12: 天门市干驿镇界牌村村民委员会 | D12: 陈胜云 | E12: 18986938746 | F12: 2812 | G12: 6 | H12: 1728 | I12: 1 | J12: =I12*168 -> 168 | K12: 0 | L12: 0 | M12: 4 | N12: 912 | O12: 2808
A13: 红庙村 | B13: 54429006ME344998X5 | C13: 天门市干驿镇红庙村村民委员会 | D13: 王国良 | E13: 13581319798 | F13: 2928 | G13: 2 | H13: 576 | I13: 4 | J13: 672 | K13: 2 | L13: 992 | M13: 3 | N13: 684 | O13: 2924
A14: 社湖岭村 | B14: 54429006K26462583X | C14: 天门市干驿镇社湖岭村村民委员会 | D14: 徐元平 | E14: 15907227388 | F14: 1953 | G14: 2 | H14: 576 | I14: 1 | J14: 168 | K14: 1 | L14: 496 | M14: 3 | N14: 684 | O14: 1924
A15: 华严湖村 | B15: 54429006ME3450016A | C15: 天门市干驿镇华严湖村村民委员会 | D15: 魏振华 | E15: 13085137787 | F15: 1987 | G15: 1 | H15: 288 | I15: 3 | J15: 504 | K15: 1 | L15: 496 | M15: 3 | N15: 684 | O15: 1972
A16: 中和村 | B16: 54429006ME34500320 | C16: 天门市干驿镇中和村村民委员会 | D16: 鲁继州 | E16: 15586297063 | F16: 2955 | G16: 3 | H16: 864 | I16: 1 | J16: 168 | K16: 2 | L16: 992 | M16: 4 | N16: 912 | O16: 2936
A17: 周口村 | B17: 54429006K264618395 | C17: 天门市干驿镇周口村村民委员会 | D17: 周启华 | E17: 13972183619 | F17: 2897 | G17: 4 | H17: 1152 | I17: 2 | J17: 336 | K17: 1 | L17: 496 | M17: 4 | N17: 912 | O17: 2896
A18: 团结村 | B18: 54429006ME3449971D | C18: 天门市干驿镇团结村村民委员会 | D18: 赵 飞 | E18: 15871928320 | F18: 3055 | G18: 1 | H18: 288 | I18: 1 | J18: 168 | K18: 2 | L18: 992 | M18: 7 | N18: 1596 | O18: 3044
A19: 陈张村 | B19: 54429006K26461919Q | C19: 天门市干驿镇陈张村村民委员会 | D19: 张艳华 | E19: 18272408063 | F19: 1809 | G19: 0 | H19: 0 | I19: 1 | J19: 168 | K19: 1 | L19: 496 | M19: 5 | N19: 1140 | O19: 1804
A20: 蒋三台村 | B20: 54429006ME3449963J | C20: 天门市干驿镇蒋三台村村民委员会 | D20: 蒋雄军 | E20: 13697387996 | F20: 2494 | G20: 2 | H20: 576 | I20: 3 | J20: 504 | K20: 1 | L20: 496 | M20: 4 | N20: 912 | O20: 2488
A21: 夹洲村 | B21: 54429006K2646196XU | C21: 天门市干驿镇夹洲村村民委员会 | D21: 陈文超 | E21: 13477456971 | F21: 1887 | G21: 2 | H21: 576 | I21: 1 | J21: 168 | K21: 0 | L21: 0 | M21: 5 | N21: 1140 | O21: 1884
A22: 鲍夹潭村 | B22: 54429006ME3449955P | C22: 天门市干驿镇鲍夹潭村村民委员会 | D22: 刘佳文 | E22: 18571500246 | F22: 3683 | G22: 4 | H22: 1152 | I22: 1 | J22: 168 | K22: 2 | L22: 992 | M22: 6 | N22: 1368 | O22: 3680
A23: 松石湖村 | B23: 54429006ME34500245 | C23: 天门市干驿镇松石湖村村民委员会 | D23: 鲁铁军 | E23: 15027262886 | F23: 1807 | G23: 0 | H23: 0 | I23: 1 | J23: 168 | K23: 1 | L23: 496 | M23: 5 | N23: 1140 | O23: 1804
A24: 杨巷村 | B24: 54429006K26462647U | C24: 天门市干驿镇杨巷村村民委员会 | D24: 陈亮峰 | E24: 15027266668 | F24: 2443 | G24: 3 | H24: 864 | I24: 1 | J24: 168 | K24: 1 | L24: 496 | M24: 4 | N24: 912 | O24: 2440
A25: 沙咀村 | B25: 54429006K264626391 | C25: 天门市干驿镇沙咀村村民委员会 | D25: 鄢汉高 | E25: 13997972903 | F25: 2259 | G25: 3 | H25: 864 | I25: 1 | J25: 168 | K25: 1 | L25: 496 | M25: 3 | N25: 684 | O25: 2212
A26: 合计 | F26: =SUM(F5:F25) -> 49964 | G26: =SUM(G5:G25) -> 46 | H26: 13248 | I26: =SUM(I5:I25) -> 32 | J26: =SUM(J5:J25) -> 5376 | K26: =SUM(K5:K25) -> 20 | L26: 9920 | M26: =SUM(M5:M25) -> 93 | N26: 21204 | O26: =SUM(O5:O25) -> 49748
